fUSD/lending_fUSD_20260621
["ID","MTS","AMOUNT","RATE_DAILY","PERIOD"]
[425946404,1782041486000,-500.0,0.00028767,2]
[425946405,1782041486000,-345.30971461,0.00028767,2]
[425946407,1782041486000,-620.76,0.00028767,2]
[425946409,1782041486000,-654.24,0.00028767,2]
[425946410,1782041486000,-631.69,0.00028767,2]
[425946412,1782041486000,-500.0,0.00028767,2]
[425946427,1782041486000,-500.0,0.00028767,2]
[425946418,1782041486000,-500.0,0.00028767,2]
[425946411,1782041486000,-500.0,0.00028767,2]
[425946406,1782041486000,-4813.29,0.00028767,2]
[425946408,1782041486000,-500.0,0.00028767,2]
[425946416,1782041486000,-500.0,0.00028767,2]
[425946417,1782041486000,-500.0,0.00028767,2]
[425946414,1782041486000,-986.01,0.00028767,2]
[425946426,1782041486000,-500.0,0.00028767,2]
[425946413,1782041486000,-500.0,0.00028767,2]
[425946425,1782041486000,-500.0,0.00028767,2]
[425946431,1782041486000,-500.0,0.00028767,2]
[425946420,1782041486000,-500.0,0.00028767,2]
[425946428,1782041486000,-687.99,0.00028767,2]
[425946419,1782041486000,-500.0,0.00028767,2]
[425946430,1782041486000,-500.0,0.00028767,2]
[425946421,1782041486000,-831.94,0.00028767,2]
[425946424,1782041486000,-500.0,0.00028767,2]
[425946422,1782041486000,-500.0,0.00028767,2]
[425946415,1782041486000,-641.37,0.00028767,2]
[425946429,1782041486000,-530.99,0.00028767,2]
[425946492,1782041487000,-500.0,0.00028767,2]
[425946498,1782041487000,-609.14,0.00028767,2]
[425946502,1782041487000,-961.8,0.00028767,2]
[425946503,1782041487000,-155.77383125,0.00028767,2]
[425946493,1782041487000,-500.0,0.00028767,2]
[425946494,1782041487000,-500.0,0.00028767,2]
[425946495,1782041487000,-1056.49,0.00028767,2]
[425946497,1782041487000,-542.14,0.00028767,2]
[425946504,1782041487000,-500.0,0.00028767,2]
[425946496,1782041487000,-500.0,0.00028767,2]
[425946505,1782041487000,-500.0,0.00028767,2]
[425946500,1782041487000,-500.0,0.00028767,2]
[425946514,1782041487000,-500.0,0.00028767,2]
[425946499,1782041487000,-500.0,0.00028767,2]
[425946507,1782041487000,-500.0,0.00028767,2]
[425946517,1782041487000,-500.0,0.00028767,2]
[425946506,1782041487000,-500.0,0.00028767,2]
[425946509,1782041487000,-500.0,0.00028767,2]
[425946518,1782041487000,-1737.27,0.00028767,2]
[425946508,1782041487000,-500.0,0.00028767,2]
[425946516,1782041487000,-899.62,0.00028767,2]
[425946510,1782041487000,-500.0,0.00028767,2]
[425946511,1782041487000,-866.53,0.00028767,2]
[425946512,1782041487000,-823.97,0.00028767,2]
[425946489,1782041487000,-500.0,0.00028767,2]
[425946501,1782041487000,-3536.2,0.00028767,2]
[425946483,1782041487000,-500.0,0.00028767,2]
[425946468,1782041487000,-500.0,0.00028767,2]
[425946487,1782041487000,-500.0,0.00028767,2]
[425946515,1782041487000,-500.0,0.00028767,2]
[425946467,1782041487000,-500.0,0.00028767,2]
[425946465,1782041487000,-500.0,0.00028767,2]
[425946463,1782041487000,-500.0,0.00028767,2]
[425946464,1782041487000,-500.0,0.00028767,2]
[425946466,1782041487000,-502.21,0.00028767,2]
[425946462,1782041487000,-500.0,0.00028767,2]
[425946469,1782041487000,-179.65,0.00028767,2]
[425946473,1782041487000,-500.0,0.00028767,2]
[425946476,1782041487000,-500.0,0.00028767,2]
[425946471,1782041487000,-500.0,0.00028767,2]
[425946472,1782041487000,-500.0,0.00028767,2]
[425946490,1782041487000,-500.0,0.00028767,2]
[425946478,1782041487000,-500.0,0.00028767,2]
[425946479,1782041487000,-500.0,0.00028767,2]
[425946475,1782041487000,-500.0,0.00028767,2]
[425946470,1782041487000,-562.38,0.00028767,2]
[425946480,1782041487000,-500.0,0.00028767,2]
[425946477,1782041487000,-500.0,0.00028767,2]
[425946491,1782041487000,-592.05,0.00028767,2]
[425946482,1782041487000,-500.0,0.00028767,2]
[425946488,1782041487000,-629.33,0.00028767,2]
[425946484,1782041487000,-500.0,0.00028767,2]
[425946485,1782041487000,-500.0,0.00028767,2]
[425946486,1782041487000,-500.0,0.00028767,2]
[425946481,1782041487000,-500.0,0.00028767,2]
[425946474,1782041487000,-526.72,0.00028767,2]
[425946525,1782041487000,-522.743824,0.00028767,2]
[425946513,1782041487000,-500.0,0.00028767,2]
[425946564,1782041487000,-500.0,0.00028767,2]
[425946548,1782041487000,-343.16140177,0.00028767,2]
[425946559,1782041487000,-500.0,0.00028767,2]
[425946553,1782041487000,-500.0,0.00028767,2]
[425946561,1782041487000,-500.0,0.00028767,2]
[425946557,1782041487000,-500.0,0.00028767,2]
[425946552,1782041487000,-500.0,0.00028767,2]
[425946555,1782041487000,-633.65,0.00028767,2]
[425946554,1782041487000,-500.0,0.00028767,2]
[425946562,1782041487000,-500.0,0.00028767,2]
[425946560,1782041487000,-500.0,0.00028767,2]
[425946558,1782041487000,-500.0,0.00028767,2]
[425946566,1782041487000,-500.0,0.00028767,2]
[425946551,1782041487000,-500.0,0.00028767,2]
[425946563,1782041487000,-500.0,0.00028767,2]
[425946567,1782041487000,-500.0,0.00028767,2]
[425946570,1782041487000,-500.0,0.00028767,2]
[425946568,1782041487000,-500.0,0.00028767,2]
[425946569,1782041487000,-786.39,0.00028767,2]
[425946571,1782041487000,-717.28,0.00028767,2]
[425946572,1782041487000,-557.39,0.00028767,2]
[425946576,1782041487000,-500.0,0.00028767,2]
[425946573,1782041487000,-500.0,0.00028767,2]
[425946574,1782041487000,-542.72,0.00028767,2]
[425946575,1782041487000,-1432.58,0.00028767,2]
[425946577,1782041487000,-822.52,0.00028767,2]
[425946522,1782041487000,-500.0,0.00028767,2]
[425946565,1782041487000,-500.0,0.00028767,2]
[425946542,1782041487000,-241.34251803,0.00028767,2]
[425946556,1782041487000,-1482.41,0.00028767,2]
[425946549,1782041487000,-634.66,0.00028767,2]
[425946520,1782041487000,-500.0,0.00028767,2]
[425946526,1782041487000,-500.0,0.00028767,2]
[425946524,1782041487000,-500.0,0.00028767,2]
[425946529,1782041487000,-921.6,0.00028767,2]
[425946519,1782041487000,-500.0,0.00028767,2]
[425946521,1782041487000,-657.06,0.00028767,2]
[425946523,1782041487000,-500.0,0.00028767,2]
[425946528,1782041487000,-500.0,0.00028767,2]
[425946547,1782041487000,-507.29,0.00028767,2]
[425946537,1782041487000,-506.46,0.00028767,2]
[425946534,1782041487000,-500.0,0.00028767,2]
[425946530,1782041487000,-500.0,0.00028767,2]
[425946533,1782041487000,-286.97139351,0.00028767,2]
[425946536,1782041487000,-500.0,0.00028767,2]
[425946527,1782041487000,-196.2131158,0.00028767,2]
[425946538,1782041487000,-500.0,0.00028767,2]
[425946535,1782041487000,-806.06,0.00028767,2]
[425946540,1782041487000,-500.0,0.00028767,2]
[425946539,1782041487000,-500.0,0.00028767,2]
[425946532,1782041487000,-500.0,0.00028767,2]
[425946541,1782041487000,-500.0,0.00028767,2]
[425946543,1782041487000,-500.0,0.00028767,2]
[425946544,1782041487000,-385.93139769,0.00028767,2]
[425946545,1782041487000,-500.0,0.00028767,2]
[425946550,1782041487000,-500.0,0.00028767,2]
[425946531,1782041487000,-500.0,0.00028767,2]
[425946546,1782041487000,-500.0,0.00028767,2]
[425946620,1782041488000,-1816.77,0.00028767,2]
[425946616,1782041488000,-3690.31,0.00028767,2]
[425946623,1782041488000,-500.0,0.00028767,2]
[425946617,1782041488000,-500.0,0.00028767,2]
[425946618,1782041488000,-500.0,0.00028767,2]
[425946614,1782041488000,-500.0,0.00028767,2]
[425946612,1782041488000,-500.0,0.00028767,2]
[425946613,1782041488000,-500.0,0.00028767,2]
[425946610,1782041488000,-500.0,0.00028767,2]
[425946608,1782041488000,-1285.55,0.00028767,2]
[425946611,1782041488000,-500.0,0.00028767,2]
[425946621,1782041488000,-500.0,0.00028767,2]
[425946615,1782041488000,-500.0,0.00028767,2]
[425946627,1782041488000,-5490.85,0.00028767,2]
[425946638,1782041488000,-500.0,0.00028767,2]
[425946633,1782041488000,-6368.24,0.00028767,2]
[425946624,1782041488000,-500.0,0.00028767,2]
[425946629,1782041488000,-809.98,0.00028767,2]
[425946622,1782041488000,-367.84111927,0.00028767,2]
[425946630,1782041488000,-500.0,0.00028767,2]
[425946625,1782041488000,-500.0,0.00028767,2]
[425946628,1782041488000,-1153.83,0.00028767,2]
[425946634,1782041488000,-5276.66,0.00028767,2]
[425946632,1782041488000,-500.0,0.00028767,2]
[425946631,1782041488000,-500.0,0.00028767,2]
[425946636,1782041488000,-500.0,0.00028767,2]
[425946639,1782041488000,-500.0,0.00028767,2]
[425946619,1782041488000,-500.0,0.00028767,2]
[425946626,1782041488000,-500.0,0.00028767,2]
[425946609,1782041488000,-791.03,0.00028767,2]
[425946582,1782041488000,-833.58,0.00028767,2]
[425946607,1782041488000,-5144.26,0.00028767,2]
[425946578,1782041488000,-2603.66,0.00028767,2]
[425946581,1782041488000,-500.0,0.00028767,2]
[425946580,1782041488000,-500.0,0.00028767,2]
[425946579,1782041488000,-533.17,0.00028767,2]
[425946583,1782041488000,-4358.65,0.00028767,2]
[425946584,1782041488000,-500.0,0.00028767,2]
[425946585,1782041488000,-500.0,0.00028767,2]
[425946596,1782041488000,-1247.04,0.00028767,2]
[425946594,1782041488000,-617.68863685,0.00028767,2]
[425946587,1782041488000,-500.0,0.00028767,2]
[425946590,1782041488000,-500.0,0.00028767,2]
[425946586,1782041488000,-945.92,0.00028767,2]
[425946591,1782041488000,-500.0,0.00028767,2]
[425946589,1782041488000,-4418.15,0.00028767,2]
[425946592,1782041488000,-500.0,0.00028767,2]
[425946588,1782041488000,-500.0,0.00028767,2]
[425946595,1782041488000,-4138.94,0.00028767,2]
[425946593,1782041488000,-500.0,0.00028767,2]
[425946597,1782041488000,-1121.32,0.00028767,2]
[425946601,1782041488000,-3754.21,0.00028767,2]
[425946602,1782041488000,-4407.46,0.00028767,2]
[425946605,1782041488000,-500.0,0.00028767,2]
[425946603,1782041488000,-1570.62,0.00028767,2]
[425946599,1782041488000,-500.0,0.00028767,2]
[425946606,1782041488000,-500.0,0.00028767,2]
[425946600,1782041488000,-657.86,0.00028767,2]
[425946598,1782041488000,-624.18,0.00028767,2]
[425946604,1782041488000,-614.69,0.00028767,2]
[425946645,1782041488000,-500.0,0.00028767,2]
[425946651,1782041488000,-500.0,0.00028767,2]
[425946647,1782041488000,-500.0,0.00028767,2]
[425946668,1782041488000,-1084.65,0.00028767,2]
[425946675,1782041488000,-254.35337087,0.00028767,2]
[425946679,1782041488000,-156.37377183,0.00028767,2]
[425946681,1782041488000,-2937.45,0.00028767,2]
[425946677,1782041488000,-500.0,0.00028767,2]
[425946674,1782041488000,-5071.67,0.00028767,2]
[425946676,1782041488000,-1000.0,0.00028767,2]
[425946680,1782041488000,-500.0,0.00028767,2]
[425946682,1782041488000,-500.0,0.00028767,2]
[425946678,1782041488000,-500.0,0.00028767,2]
[425946683,1782041488000,-5790.86,0.00028767,2]
[425946684,1782041488000,-500.0,0.00028767,2]
[425946690,1782041488000,-500.0,0.00028767,2]
[425946689,1782041488000,-500.0,0.00028767,2]
[425946687,1782041488000,-500.0,0.00028767,2]
[425946692,1782041488000,-566.7431602,0.00028767,2]
[425946685,1782041488000,-179.60050284,0.00028767,2]
[425946686,1782041488000,-500.0,0.00028767,2]
[425946694,1782041488000,-4927.15,0.00028767,2]
[425946691,1782041488000,-500.0,0.00028767,2]
[425946696,1782041488000,-5086.11,0.00028767,2]
[425946695,1782041488000,-551.78,0.00028767,2]
[425946693,1782041488000,-1540.59,0.00028767,2]
[425946697,1782041488000,-3633.38,0.00028767,2]
[425946698,1782041488000,-500.0,0.00028767,2]
[425946699,1782041488000,-500.0,0.00028767,2]
[425946646,1782041488000,-475.71626045,0.00028767,2]
[425946665,1782041488000,-500.0,0.00028767,2]
[425946673,1782041488000,-4526.61,0.00028767,2]
[425946688,1782041488000,-500.0,0.00028767,2]
[425946666,1782041488000,-500.0,0.00028767,2]
[425946670,1782041488000,-500.0,0.00028767,2]
[425946637,1782041488000,-599.42,0.00028767,2]
[425946635,1782041488000,-500.0,0.00028767,2]
[425946641,1782041488000,-500.0,0.00028767,2]
[425946643,1782041488000,-500.0,0.00028767,2]
[425946644,1782041488000,-1401.64,0.00028767,2]
[425946640,1782041488000,-500.0,0.00028767,2]
[425946648,1782041488000,-500.0,0.00028767,2]
[425946649,1782041488000,-500.0,0.00028767,2]
[425946700,1782041488000,-602.16,0.00028767,2]
[425946656,1782041488000,-500.0,0.00028767,2]
[425946652,1782041488000,-500.0,0.00028767,2]
[425946658,1782041488000,-500.0,0.00028767,2]
[425946659,1782041488000,-500.0,0.00028767,2]
[425946642,1782041488000,-791.58,0.00028767,2]
[425946657,1782041488000,-10299.35,0.00028767,2]
[425946653,1782041488000,-500.0,0.00028767,2]
[425946672,1782041488000,-1051.17,0.00028767,2]
[425946669,1782041488000,-712.28,0.00028767,2]
[425946667,1782041488000,-5185.6,0.00028767,2]
[425946671,1782041488000,-515.74,0.00028767,2]
[425946662,1782041488000,-500.0,0.00028767,2]
[425946664,1782041488000,-3778.65,0.00028767,2]
[425946661,1782041488000,-2310.69,0.00028767,2]
[425946654,1782041488000,-5471.52,0.00028767,2]
[425946655,1782041488000,-1496.3,0.00028767,2]
[425946660,1782041488000,-500.0,0.00028767,2]
[425946650,1782041488000,-500.0,0.00028767,2]
[425946663,1782041488000,-500.0,0.00028767,2]
[425946727,1782041489000,-3767.72,0.00028767,2]
[425946722,1782041489000,-762.22,0.00028767,2]
[425946720,1782041489000,-569.43,0.00028767,2]
[425946729,1782041489000,-10187.27,0.00028767,2]
[425946736,1782041489000,-9769.93,0.00028767,2]
[425946734,1782041489000,-6306.04,0.00028767,2]
[425946735,1782041489000,-500.0,0.00028767,2]
[425946733,1782041489000,-7097.95,0.00028767,2]
[425946739,1782041489000,-6658.95,0.00028767,2]
[425946731,1782041489000,-500.0,0.00028767,2]
[425946749,1782041489000,-900.14,0.00028767,2]
[425946738,1782041489000,-907.49,0.00028767,2]
[425946741,1782041489000,-4117.41,0.00028767,2]
[425946737,1782041489000,-635.22,0.00028767,2]
[425946740,1782041489000,-5383.81,0.00028767,2]
[425946746,1782041489000,-500.0,0.00028767,2]
[425946748,1782041489000,-500.0,0.00028767,2]
[425946742,1782041489000,-500.0,0.00028767,2]
[425946744,1782041489000,-500.0,0.00028767,2]
[425946724,1782041489000,-747.22,0.00028767,2]
[425946732,1782041489000,-500.0,0.00028767,2]
[425946719,1782041489000,-500.0,0.00028767,2]
[425946712,1782041489000,-500.0,0.00028767,2]
[425946726,1782041489000,-500.0,0.00028767,2]
[425946752,1782041489000,-500.0,0.00028767,2]
[425946704,1782041489000,-630.74,0.00028767,2]
[425946703,1782041489000,-4920.34,0.00028767,2]
[425946705,1782041489000,-500.0,0.00028767,2]
[425946701,1782041489000,-8889.73,0.00028767,2]
[425946702,1782041489000,-500.0,0.00028767,2]
[425946706,1782041489000,-500.0,0.00028767,2]
[425946707,1782041489000,-7329.28,0.00028767,2]
[425946709,1782041489000,-9406.56,0.00028767,2]
[425946710,1782041489000,-802.4,0.00028767,2]
[425946723,1782041489000,-500.0,0.00028767,2]
[425946711,1782041489000,-6055.84,0.00028767,2]
[425946715,1782041489000,-6718.25,0.00028767,2]
[425946708,1782041489000,-1675.81,0.00028767,2]
[425946717,1782041489000,-1355.35,0.00028767,2]
[425946718,1782041489000,-830.82,0.00028767,2]
[425946716,1782041489000,-500.0,0.00028767,2]
[425946714,1782041489000,-5372.41,0.00028767,2]
[425946730,1782041489000,-391.01191,0.00028767,2]
[425946728,1782041489000,-500.0,0.00028767,2]
[425946725,1782041489000,-9459.19,0.00028767,2]
[425946721,1782041489000,-500.0,0.00028767,2]
[425946713,1782041489000,-8710.73,0.00028767,2]
[425946743,1782041489000,-500.0,0.00028767,2]
[425946750,1782041489000,-500.0,0.00028767,2]
[425946745,1782041489000,-4489.89,0.00028767,2]
[425946774,1782041489000,-500.0,0.00028767,2]
[425946776,1782041489000,-500.0,0.00028767,2]
[425946781,1782041489000,-6837.07,0.00028767,2]
[425946780,1782041489000,-9170.86,0.00028767,2]
[425946778,1782041489000,-4309.61,0.00028767,2]
[425946777,1782041489000,-287.82845488,0.00028767,2]
[425946779,1782041489000,-644.07,0.00028767,2]
[425946784,1782041489000,-7268.59,0.00028767,2]
[425946785,1782041489000,-622.11459867,0.00028767,2]
[425946786,1782041489000,-560.48,0.00028767,2]
[425946787,1782041489000,-4706.4,0.00028767,2]
[425946790,1782041489000,-7027.59,0.00028767,2]
[425946791,1782041489000,-629.21,0.00028767,2]
[425946788,1782041489000,-500.0,0.00028767,2]
[425946794,1782041489000,-500.0,0.00028767,2]
[425946793,1782041489000,-1177.81,0.00028767,2]
[425946792,1782041489000,-500.0,0.00028767,2]
[425946796,1782041489000,-500.0,0.00028767,2]
[425946795,1782041489000,-500.0,0.00028767,2]
[425946797,1782041489000,-500.0,0.00028767,2]
[425946747,1782041489000,-500.0,0.00028767,2]
[425946783,1782041489000,-528.51,0.00028767,2]
[425946771,1782041489000,-500.0,0.00028767,2]
[425946789,1782041489000,-9051.47,0.00028767,2]
[425946773,1782041489000,-500.0,0.00028767,2]
[425946751,1782041489000,-500.0,0.00028767,2]
[425946775,1782041489000,-604.06,0.00028767,2]
[425946754,1782041489000,-5756.01,0.00028767,2]
[425946756,1782041489000,-500.0,0.00028767,2]
[425946753,1782041489000,-500.0,0.00028767,2]
[425946758,1782041489000,-500.0,0.00028767,2]
[425946760,1782041489000,-500.0,0.00028767,2]
[425946757,1782041489000,-1112.63,0.00028767,2]
[425946755,1782041489000,-500.0,0.00028767,2]
[425946762,1782041489000,-500.0,0.00028767,2]
[425946761,1782041489000,-3494.12,0.00028767,2]
[425946764,1782041489000,-500.0,0.00028767,2]
[425946765,1782041489000,-623.68,0.00028767,2]
[425946763,1782041489000,-8419.53,0.00028767,2]
[425946767,1782041489000,-13098.52,0.00028767,2]
[425946768,1782041489000,-8823.24,0.00028767,2]
[425946770,1782041489000,-513.46,0.00028767,2]
[425946766,1782041489000,-11148.58,0.00028767,2]
[425946769,1782041489000,-500.0,0.00028767,2]
[425946759,1782041489000,-673.53,0.00028767,2]
[425946782,1782041489000,-500.0,0.00028767,2]
[425946772,1782041489000,-500.0,0.00028767,2]
[425946824,1782041490000,-500.0,0.00028767,2]
[425946836,1782041490000,-904.85,0.00028767,2]
[425946833,1782041490000,-8765.19,0.00028767,2]
[425946835,1782041490000,-1574.38,0.00028767,2]
[425946834,1782041490000,-500.0,0.00028767,2]
[425946829,1782041490000,-577.03,0.00028767,2]
[425946831,1782041490000,-338.12997869,0.00028767,2]
[425946837,1782041490000,-500.0,0.00028767,2]
[425946854,1782041490000,-1956.1,0.00028767,2]
[425946838,1782041490000,-6716.5,0.00028767,2]
[425946832,1782041490000,-500.0,0.00028767,2]
[425946839,1782041490000,-500.0,0.00028767,2]
[425946844,1782041490000,-4282.25,0.00028767,2]
[425946851,1782041490000,-500.0,0.00028767,2]
[425946841,1782041490000,-1014.39,0.00028767,2]
[425946842,1782041490000,-500.0,0.00028767,2]
[425946840,1782041490000,-500.0,0.00028767,2]
[425946846,1782041490000,-670.9,0.00028767,2]
[425946850,1782041490000,-500.0,0.00028767,2]
[425946845,1782041490000,-2639.33,0.00028767,2]
[425946843,1782041490000,-525.46,0.00028767,2]
[425946849,1782041490000,-996.79,0.00028767,2]
[425946847,1782041490000,-500.0,0.00028767,2]
[425946848,1782041490000,-500.0,0.00028767,2]
[425946825,1782041490000,-1036.7,0.00028767,2]
[425946830,1782041490000,-1267.73,0.00028767,2]
[425946822,1782041490000,-551.8,0.00028767,2]
[425946803,1782041490000,-500.0,0.00028767,2]
[425946823,1782041490000,-709.91,0.00028767,2]
[425946801,1782041490000,-500.0,0.00028767,2]
[425946804,1782041490000,-500.0,0.00028767,2]
[425946805,1782041490000,-4255.92,0.00028767,2]
[425946798,1782041490000,-559.52,0.00028767,2]
[425946800,1782041490000,-6082.93,0.00028767,2]
[425946802,1782041490000,-3570.15,0.00028767,2]
[425946799,1782041490000,-526.21,0.00028767,2]
[425946810,1782041490000,-6743.01,0.00028767,2]
[425946812,1782041490000,-500.0,0.00028767,2]
[425946814,1782041490000,-500.0,0.00028767,2]
[425946806,1782041490000,-500.0,0.00028767,2]
[425946807,1782041490000,-500.0,0.00028767,2]
[425946808,1782041490000,-500.0,0.00028767,2]
[425946815,1782041490000,-500.0,0.00028767,2]
[425946809,1782041490000,-560.51,0.00028767,2]
[425946816,1782041490000,-500.0,0.00028767,2]
[425946811,1782041490000,-500.0,0.00028767,2]
[425946813,1782041490000,-500.0,0.00028767,2]
[425946818,1782041490000,-7687.48,0.00028767,2]
[425946828,1782041490000,-2865.46,0.00028767,2]
[425946819,1782041490000,-500.0,0.00028767,2]
[425946827,1782041490000,-500.0,0.00028767,2]
[425946826,1782041490000,-5230.31,0.00028767,2]
[425946817,1782041490000,-500.0,0.00028767,2]
[425946820,1782041490000,-15685.64,0.00028767,2]
[425946821,1782041490000,-1317.73,0.00028767,2]
[425946856,1782041490000,-500.0,0.00028767,2]
[425946877,1782041490000,-250.0,0.00028767,11]
[425946859,1782041490000,-500.0,0.00028767,2]
[425946887,1782041490000,-1025.33,0.000288,30]
[425946895,1782041490000,-157.0,0.00028879,30]
[425946886,1782041490000,-1200.29,0.000288,7]
[425946888,1782041490000,-160.0,0.00028812,3]
[425946898,1782041490000,-156.0,0.0002888,30]
[425946896,1782041490000,-123794.96353055,0.0002888,60]
[425946890,1782041490000,-2310.0,0.00028856,3]
[425946893,1782041490000,-155.0,0.00028879,30]
[425946892,1782041490000,-151.0,0.00028879,30]
[425946891,1782041490000,-151.0,0.00028879,30]
[425946894,1782041490000,-243.0,0.00028879,30]
[425946905,1782041490000,-2241.11696297,0.000289,2]
[425946904,1782041490000,-449.5,0.000289,7]
[425946906,1782041490000,-3058.0,0.00028904,2]
[425946909,1782041490000,-412.33,0.00028964,2]
[425946899,1782041490000,-154.0,0.0002888,30]
[425946902,1782041490000,-158.0,0.0002888,30]
[425946903,1782041490000,-160.0,0.0002888,30]
[425946910,1782041490000,-365.26,0.00028964,2]
[425946901,1782041490000,-151.0,0.0002888,30]
[425946907,1782041490000,-1025.33,0.00028925,30]
[425946908,1782041490000,-342.37,0.00028964,2]
[425946900,1782041490000,-157.0,0.0002888,30]
[425946911,1782041490000,-342.45,0.00028964,2]
[425946852,1782041490000,-271.0091866,0.00028767,2]
[425946897,1782041490000,-159.0,0.0002888,30]
[425946875,1782041490000,-2183.7,0.00028767,2]
[425946889,1782041490000,-510.0,0.00028842,3]
[425946880,1782041490000,-365.26,0.00028797,7]
[425946853,1782041490000,-4283.71,0.00028767,2]
[425946855,1782041490000,-500.0,0.00028767,2]
[425946857,1782041490000,-729.73,0.00028767,2]
[425946861,1782041490000,-909.56,0.00028767,2]
[425946858,1782041490000,-2259.71,0.00028767,2]
[425946862,1782041490000,-500.0,0.00028767,2]
[425946864,1782041490000,-573.05,0.00028767,2]
[425946869,1782041490000,-500.0,0.00028767,2]
[425946867,1782041490000,-1067.51,0.00028767,2]
[425946865,1782041490000,-500.0,0.00028767,2]
[425946863,1782041490000,-500.0,0.00028767,2]
[425946866,1782041490000,-503.69,0.00028767,2]
[425946879,1782041490000,-342.37,0.00028797,7]
[425946868,1782041490000,-500.0,0.00028767,2]
[425946860,1782041490000,-500.0,0.00028767,2]
[425946873,1782041490000,-500.0,0.00028767,2]
[425946871,1782041490000,-500.0,0.00028767,2]
[425946872,1782041490000,-500.0,0.00028767,2]
[425946884,1782041490000,-526.11,0.000288,2]
[425946883,1782041490000,-411.91,0.00028797,7]
[425946878,1782041490000,-250.0,0.00028767,11]
[425946882,1782041490000,-342.45,0.00028797,7]
[425946874,1782041490000,-500.0,0.00028767,2]
[425946881,1782041490000,-412.33,0.00028797,7]
[425946885,1782041490000,-1039.15,0.000288,7]
[425946876,1782041490000,-398.0,0.00028767,2]
[425946870,1782041490000,-1203.84,0.00028767,2]
[425946912,1782041491000,-411.91,0.00028964,2]
[425946914,1782041491000,-7500.0,0.00029,2]
[425946915,1782041491000,-387749.31779243,0.00029,7]
[425946913,1782041491000,-15192.2251163,0.00028964,2]
[425946916,1782041492000,-195.25,0.00024658,2]
[425946917,1782041492000,-500.0,0.00027397,2]
[425946919,1782041492000,-500.0,0.00027397,2]
[425946918,1782041492000,-500.0,0.00027397,2]
[425946923,1782041492000,-500.0,0.00027945,2]
[425946925,1782041492000,-500.0,0.00028219,2]
[425946920,1782041492000,-500.0,0.00027397,2]
[425946921,1782041492000,-500.0,0.00027671,2]
[425946924,1782041492000,-500.0,0.00027945,2]
[425946926,1782041492000,-509.3287975,0.00028219,2]
[425946927,1782041492000,-500.0,0.00028493,2]
[425946929,1782041492000,-1016779.50562141,0.00029,7]
[425946928,1782041492000,-500.0,0.00028767,2]
[425946922,1782041492000,-500.0,0.00027671,2]
[425946937,1782041493000,-500.0,0.00027671,2]
[425946936,1782041493000,-363.90048019,0.00027671,2]
[425946930,1782041493000,-500.0,0.00027397,2]
[425946934,1782041493000,-3866.51233694,0.00027397,10]
[425946933,1782041493000,-381.84766306,0.00027397,2]